Cogmind - Beta 14 @@@ ROGUE MODE // 2025.05.04 @ 20:29:05 Player: DannyCarnage Result: Destroyed by Y-45 Defender with Heavy Assault Rifle Performance ------------- Evolutions (2) 1000 Regions Visited (5) 1000 Robots Destroyed (44) 220 Value Destroyed (1499) 1499 Prototype IDs (25) 500 Alien Tech Used (0) 0 Bonus (457) 457 TOTAL SCORE: 4676 Bonus ------- High Alert Combat Kills 87 Follower Combat Kills 70 Aligned with FarCom 300 Cogmind --------- Core Integrity 0/550 Matter 203/300 Energy 265/265 System Corruption 10% Temperature Cool (13) Movement Walking (130) Location -8/Materials Parts ------- > --- POWER (1) -------- Improved Ion Engine > --- PROPULSION (4) --- Titanium Leg Titanium Leg Titanium Leg Titanium Leg > --- UTILITY (4) ------ Lightpack 2.0 Improved Light Armor Plating > --- WEAPON (2) ------- Minigun Minigun > --- INVENTORY (40) --- Faulty Aerolev Unit Heat Sink Heat Sink Improved Heat Sink Small Storage Unit Advanced Visual Processing Unit Improved Terrain Scanner Improved Terrain Scanner Core Shielding Light Armor Plating Light Armor Plating Improved Light Armor Plating Spread Laser Beamcaster EM Pulse Cannon Latent Energy Streamer High-powered Shotgun High-powered Shotgun High-powered Shotgun High-powered Shotgun High-powered Shotgun AWS/Autocannon EMP Blaster Katana Peak State ------------ > --- POWER ------------ Light Nuclear Core > --- PROPULSION ------- Aluminum Leg Carbon-fiber Leg VSS Leg > --- UTILITY ---------- Lightpack 2.0 Improved Sensor Array > --- WEAPON ----------- Heavy EM Shotgun Latent Energy Streamer > --- INVENTORY -------- Improved Ion Engine Light Deuterium Engine Aerolev Unit Heat Sink Small Storage Unit Advanced Visual Processing Unit Improved Terrain Scanner Improved Terrain Scanner Light Armor Plating Light Armor Plating Light Armor Plating Spread Laser Beamcaster EM Pulse Cannon Ion Cannon AWS/Autocannon EMP Blaster Katana [Rating: 64] Favorites ----------- Power Light Nuclear Core Engine Light Ion Engine Power Core Light Nuclear Core Propulsion Aluminum Leg Leg Aluminum Leg Utility Lightpack 2.0 Device Improved Sensor Array Storage Lightpack 2.0 Protection Light Armor Plating Weapon Grenade Launcher Energy Gun Spread Laser Energy Cannon Latent Energy Streamer Ballistic Gun Light Assault Rifle Launcher Grenade Launcher Slashing Weapon Katana Build | -11 -10 -10 -10 -9 -8 ------- Run | Yrd Mat Min Exi Min Mat Slots Evolved 4 | . . . . . 4 Power . | . . . . . . Propulsion 2 | . . . . . 2 Utility 2 | . . . . . 2 Weapon . | . . . . . . Parts Attached 59 | 6 2 7 3 . 41 Power 8 | 1 1 1 . . 5 Engine 7 | 1 1 1 . . 4 Core 1 | . . . . . 1 Reactor . | . . . . . . Propulsion 16 | 2 . 2 . . 12 Treads . | . . . . . . Leg 16 | 2 . 2 . . 12 Wheel . | . . . . . . Hover . | . . . . . . Flight . | . . . . . . Utility 10 | 1 1 2 2 . 4 Device 1 | . . . . . 1 Storage 4 | 1 . 1 1 . 1 Processor . | . . . . . . Hackware . | . . . . . . Protection 5 | . 1 1 1 . 2 Artifact . | . . . . . . Weapon 25 | 2 . 2 1 . 20 Energy Gun 6 | . . 1 . . 5 Energy Cannon 4 | . . . 1 . 3 Ballistic Gun 12 | 2 . . . . 10 Ballistic Cannon . | . . . . . . Launcher 2 | . . 1 . . 1 Special Weapon . | . . . . . . Impact Weapon . | . . . . . . Slashing Weapon 1 | . . . . . 1 Piercing Weapon . | . . . . . . Special Melee Weapon . | . . . . . . Unidentified Prototypes 3 | . . . 1 . 2 Corrupted Parts 1 | . . . . . 1 System Corruption 5 | . . . . . 5 Parts Lost 31 | . 1 7 . . 23 Power 7 | . 1 1 . . 5 Propulsion 11 | . . 2 . . 9 Utility 4 | . . 2 . . 2 Weapon 9 | . . 2 . . 7 Highest Loss Streak 11 | . 1 7 . . 11 To Critical Strikes . | . . . . . . Average Slot Usage (%) 75 | . 98 87 99 100 62 Engine 6 | . 13 11 14 14 2 Core 3 | . . . . . 5 Leg 22 | . 28 23 28 28 19 Device 4 | . . . . . 6 Storage 10 | . 14 15 14 14 9 Protection 5 | . 13 9 13 14 1 Energy Gun 7 | . . 13 3 . 9 Energy Cannon 2 | . . . 10 14 . Ballistic Gun 5 | . 28 2 . . 3 Launcher 5 | . . 11 14 14 3 Peak Build Rating 64 | 6 7 7 22 22 64 Average Rating 37 | 4 6 6 18 22 53 On Entrance 10 | . 6 7 7 22 22 Naked Turns . | . . . . . . Heaviest Build 24 | 12 15 15 24 24 24 Greatest Support 68 | 20 20 20 20 20 68 Greatest Overweight (x) 3 | . . 3 1 1 3 Average Overweight (x) . | . . . . 1 . Largest Inventory Capacity 40 | 8 8 8 8 8 40 Average Capacity 27 | 7 8 8 8 8 39 Most Carried 38 | 5 8 7 8 8 38 Average Carried 14 | 3 7 3 6 8 20 Final Capacity 40 | 8 8 8 8 8 40 Final Carried 26 | 4 7 2 8 8 26 Class Distribution -------------------- 38% | Mutant 35% | Hauler-Skirmisher 19% | Hauler-Mutant 6% | Hauler-Assassin Dominant Class ---------------- Mutant | -10/Materials Mutant | -10/Mines Mutant | -10/Exiles Mutant | -9/Mines Hauler-Skirmisher | -8/Materials Resources | -11 -10 -10 -10 -9 -8 ----------- Run | Yrd Mat Min Exi Min Mat Matter Collected 1257 | 189 193 62 . . 813 Remotely . | . . . . . . Salvage Created 1549 | . 168 49 . . 1332 Parts 94 | . 6 3 . . 85 Haulers Intercepted 1 | . . . . . 1 Recyclers Shooed 2 | . . . . . 2 Parts Field Recycled . | . . . . . . Retrieved Matter . | . . . . . . Parts Self-Destructed . | . . . . . . Prevented . | . . . . . . Kills | -11 -10 -10 -10 -9 -8 ------- Run | Yrd Mat Min Exi Min Mat Combat Hostiles Destroyed 38 | . 5 3 . . 30 Guns 31 | . 5 2 . . 24 Cannons 1 | . . . . . 1 AOE 6 | . . 1 . . 5 Classes Destroyed 14 | . 3 2 . . 9 Worker 4 | . . . . . 4 Tunneler 2 | . . 1 . . 1 Hauler 1 | . . . . . 1 Watcher 2 | . 1 . . . 1 Swarmer 9 | . 3 . . . 6 Grunt 9 | . 2 . . . 7 Brawler 2 | . . . . . 2 Duelist 2 | . . . . . 2 Protector 1 | . . . . . 1 Sentry 5 | . . . . . 5 Specialist 4 | . . . . . 4 Hunter 2 | . . . . . 2 Heavy 1 | . . . . . 1 Assembled 3 | . . 3 . . . Best Kill Streak 7 | . 3 3 . . 7 Combat Bots Only 5 | . 3 3 . . 5 Max Kills in Single Turn 2 | . 1 1 . . 2 Gunslinging . | . . . . . . Exploded 2 | . . 1 . . 2 Melee . | . . . . . . Uniques/NPCs Destroyed . | . . . . . . Combat | -11 -10 -10 -10 -9 -8 -------- Run | Yrd Mat Min Exi Min Mat Hostile Shots Fired 323 | . 48 28 . . 247 Missed 80 | . 11 3 . . 66 Damage Taken 4317 | . 383 538 . . 3396 Core 752 | . 51 141 . . 560 Absorbed by Shields . | . . . . . . Core Remaining (%) 61 | 100 . . . 23 . Volleys Fired 160 | . 27 15 . . 118 Largest 2 | . 2 2 . . 2 Hottest 125 | . 40 70 . . 125 Shots Fired 280 | . 54 22 1 . 203 Gun 257 | . 54 21 1 . 181 Cannon 18 | . . . . . 18 Launcher 5 | . . 1 . . 4 Special . | . . . . . . Kinetic 171 | . 54 9 . . 108 Thermal 75 | . . 12 1 . 62 Explosive 3 | . . 1 . . 2 Electromagnetic 31 | . . . . . 31 Robot Hit Streak 16 | . 16 7 . . 13 Robot Miss Streak 12 | . 2 2 . . 12 Penetration Max . | . . . . . . Secondary Targets 6 | . 1 . . . 5 Max Gunslinging Chain 1 | . 1 . . . 1 Shots Hit Robots 206 | . 39 14 . . 153 Core Hits 111 | . 15 11 . . 85 Critical Kills . | . . . . . . Critical Parts Destroyed . | . . . . . . Critical Strikes 3 | . . . . . 3 Burn 3 | . . . . . 3 Melee Attacks . | . . . . . . Impact . | . . . . . . Slashing . | . . . . . . Piercing . | . . . . . . Sneak Attacks . | . . . . . . Combat Hostiles . | . . . . . . Follow-up Attacks . | . . . . . . Damage Inflicted 3780 | . 321 170 . . 3289 Guns 2963 | . 321 131 . . 2511 Cannons 320 | . . . . . 320 Explosions 497 | . . 39 . . 458 Melee . | . . . . . . Ramming . | . . . . . . Kinetic 1872 | . 321 53 . . 1498 Thermal 1123 | . . 78 . . 1045 Explosive 264 | . . 39 . . 225 Electromagnetic 521 | . . . . . 521 Impact . | . . . . . . Slashing . | . . . . . . Piercing . | . . . . . . Highest Corruption 10 | . . 1 1 1 10 Average Corruption 4 | . . 1 1 1 6 Corruption Purged . | . . . . . . Corruption Blocked . | . . . . . . Effects 65 | . . 1 5 . 59 Message Errors 14 | . . 1 2 . 11 Matter Fused 12 | . . . 2 . 10 Heat Flow Errors 7 | . . . . . 7 Energy Discharges 10 | . . . . . 10 Data Loss (minor) 6 | . . . . . 6 Data Loss (major) 6 | . . . . . 6 Misfires 4 | . . . 1 . 3 Weapon Failures 6 | . . . . . 6 Overload Shots . | . . . . . . Overflow Damage 68 | . . . . . 68 Projectiles . | . . . . . . Explosions 68 | . . . . . 68 Melee . | . . . . . . Knockbacks . | . . . . . . Impact . | . . . . . . Kinetic . | . . . . . . Secondary . | . . . . . . Self-Inflicted Damage 197 | . . 31 . . 166 Shots 6 | . . 1 . . 5 Rammed . | . . . . . . Targets Rammed . | . . . . . . Kicked . | . . . . . . Crushed . | . . . . . . Highest Temperature 460 | . 105 115 10 . 460 Average Temperature 103 | . 46 61 7 . 118 Received Heat Transfer 1058 | . 141 260 . . 657 Effects 5 | . . . . . 5 Shutdowns 2 | . . . . . 2 Energy Bleed 2 | . . . . . 2 Short Circuit 1 | . . . . . 1 Siege Activations . | . . . . . . Robots Corrupted . | . . . . . . Combat Hostiles . | . . . . . . Parts Fried 1 | . . . . . 1 Impact Corruptions . | . . . . . . Robots Melted . | . . . . . . Combat Hostiles . | . . . . . . Parts Melted 3 | . . . . . 3 Heat Transferred 1894 | . . 175 . . 1719 Parts Sabotaged . | . . . . . . Parts Stolen . | . . . . . . Parts Stripped . | . . . . . . Power Chain Reactions 2 | . . . . . 2 Alert | -11 -10 -10 -10 -9 -8 ------- Run | Yrd Mat Min Exi Min Mat Peak Influence 524 | . 105 45 . . 524 Initial 40 | . . 40 . . . Average 117 | . 28 10 . . 153 Maximum Alert Level 2 | . . . . . 2 Low Security (%) 71 | 100 100 100 . 100 61 Level 1 19 | . . . . . 26 Level 2 9 | . . . . . 12 Level 3 . | . . . . . . Level 4 . | . . . . . . Level 5 . | . . . . . . High Security . | . . . . . . Max Security . | . . . . . . Squads Dispatched 11 | . . . . . 11 Investigation 2 | . . . . . 2 Extermination . | . . . . . . Reinforcement 7 | . . . . . 7 Assault 1 | . . . . . 1 Garrison 1 | . . . . . 1 Intercept . | . . . . . . Searches Triggered . | . . . . . . Construction Impeded . | . . . . . . Haulers Reinforced . | . . . . . . Active Scanning Responses . | . . . . . . Cargo Convoy Interrupts . | . . . . . . Stealth | -11 -10 -10 -10 -9 -8 --------- Run | Yrd Mat Min Exi Min Mat Distress Signals 3 | . . . . . 3 Communications Jammed . | . . . . . . Distress Signals . | . . . . . . Times Spotted 55 | . 9 6 . . 40 Peak Tracking Total 8 | . 3 8 . . 5 Tactical Retreats 5 | . 1 1 . . 3 Traps | -11 -10 -10 -10 -9 -8 ------- Run | Yrd Mat Min Exi Min Mat Traps Triggered . | . . . . . . Indirectly . | . . . . . . Trap Hack Attempts . | . . . . . . Triggered . | . . . . . . Disarmed . | . . . . . . Reprogrammed . | . . . . . . Reused . | . . . . . . Traps Extracted . | . . . . . . Installed . | . . . . . . Triggered . | . . . . . . Machines | -11 -10 -10 -10 -9 -8 ---------- Run | Yrd Mat Min Exi Min Mat Machines Disabled 2 | . . . . . 2 Max in Single Turn 2 | . . . . . 2 Garrison Access 1 | . . . . . 1 Machines Repaired . | . . . . . . Machines Dismantled . | . . . . . . Machines Sabotaged . | . . . . . . Overloaded Fab Kills . | . . . . . . Hacking | -11 -10 -10 -10 -9 -8 --------- Run | Yrd Mat Min Exi Min Mat Machines Accessed 7 | . 1 . 2 . 4 Terminals 4 | . 1 . . . 3 Fabricators . | . . . . . . Repair Stations 1 | . . . . . 1 Recycling Units . | . . . . . . Scanalyzers . | . . . . . . Garrison Access . | . . . . . . Total Hacks 11 | . 1 . 2 . 8 Successful 7 | . 1 . 2 . 4 Failed 4 | . . . . . 4 Catastrophic . | . . . . . . Database Lockouts . | . . . . . . Manual 1 | . . . 1 . . Terminals 6 | . 1 . . . 5 Fabricators . | . . . . . . Repair Stations 3 | . . . . . 3 Recycling Units . | . . . . . . Scanalyzers . | . . . . . . Garrison Access . | . . . . . . Terminal Hacks 6 | . 1 . 2 . 3 Record 1 | . . . 1 . . Alert Level 1 | . . . . . 1 Dispatch Records 1 | . . . . . 1 Maintenance Status 1 | . 1 . . . . Recall Investigation 1 | . . . . . 1 Derelict Proto ID Bank 1 | . . . 1 . . Fabricator Hacks . | . . . . . . Repair Station Hacks 1 | . . . . . 1 Scan Component 1 | . . . . . 1 Recycling Unit Hacks . | . . . . . . Scanalyzer . | . . . . . . Garrison Access Hacks . | . . . . . . Unauthorized Hacks . | . . . . . . Terminals . | . . . . . . Fabricators . | . . . . . . Repair Stations . | . . . . . . Recycling Units . | . . . . . . Scanalyzers . | . . . . . . Garrison Access . | . . . . . . Data Cores Recovered . | . . . . . . Used . | . . . . . . Hacking Detections 2 | . . . . . 2 Full Trace Events 1 | . . . . . 1 Feedback Events . | . . . . . . Feedback Blocked . | . . . . . . Robot Schematics Acquired . | . . . . . . Robots Built . | . . . . . . Authchips . | . . . . . . Time . | . . . . . . Total Robot Build Rating . | . . . . . . Part Schematics Acquired . | . . . . . . Parts Built . | . . . . . . Authchips . | . . . . . . Time . | . . . . . . Total Part Build Rating . | . . . . . . Parts Repaired . | . . . . . . Time . | . . . . . . Parts Recycled . | . . . . . . Recycled Matter . | . . . . . . Retrieved Matter . | . . . . . . Retrieved Components . | . . . . . . Parts Scanalyzed . | . . . . . . Part Schematics Acquired . | . . . . . . Parts Damaged . | . . . . . . Bothacking | -11 -10 -10 -10 -9 -8 ------------ Run | Yrd Mat Min Exi Min Mat Used RIF Installer . | . . . . . . Robots Hacked . | . . . . . . Non-combat . | . . . . . . Combat . | . . . . . . Robot Hacks Applied . | . . . . . . Relay Couplers Released 1 | . . . . . 1 Machine Destruction 1 | . . . . . 1 Fabnet Peak Effective % . | . . . . . . Robots Rewired . | . . . . . . Allies Hacked . | . . . . . . Hacks Repelled . | . . . . . . Allies | -11 -10 -10 -10 -9 -8 -------- Run | Yrd Mat Min Exi Min Mat Total Allies 2 | . . . . 2 . Largest Group 2 | . . . . 2 2 Highest-Rated Group 36 | . . . . 36 36 Highest-Rated Ally 31 | . . . . 31 31 Total Orders . | . . . . . . Ally Attacks 12 | . . . . . 12 Total Damage 149 | . . . . . 149 Kills 2 | . . . . . 2 Allies Corrupted . | . . . . . . Allies Melted . | . . . . . . Intel | -11 -10 -10 -10 -9 -8 ------- Run | Yrd Mat Min Exi Min Mat Robot Analysis Total . | . . . . . . Derelict Logs Recovered . | . . . . . . Drone Launches . | . . . . . . Drone Recoveries . | . . . . . . Exploration | -11 -10 -10 -10 -9 -8 ------------- Run | Yrd Mat Min Exi Min Mat Turns Passed 3821 | 63 452 278 644 50 2334 Spaces Moved 1580 | 45 294 186 383 18 654 Core 29 | 9 . 16 . . 4 Treads . | . . . . . . Legs 1551 | 36 294 170 383 18 650 Wheels . | . . . . . . Hover . | . . . . . . Flight . | . . . . . . Fastest Speed 50 | 50 120 120 120 190 105 Average Speed 133 | 106 120 123 166 190 124 Slowest Speed 200 | 120 120 200 190 190 200 Overloaded Moves . | . . . . . . Propulsion Burnouts . | . . . . . . Robots Hopped . | . . . . . . Cave-ins Triggered . | . . . . . . Exploration Rate (%) 35 | 4 50 38 83 7 33 Regions Visited 5 Branch Regions 3 Pre-discovered Areas 1 | . . 1 . . . Known Exits Taken . | . . . . . . Unknown Exits Taken 5 | 1 1 1 1 1 . Scrap Searched . | . . . . . . Spaces Dug 8 | . . 8 . . . Terrain Destroyed 45 | . . 8 . . 37 Melee . | . . . . . . Projectile 1 | . . . . . 1 AOE 44 | . . 8 . . 36 Terrain Rammed . | . . . . . . Walls Destroyed . | . . . . . . Machines Disabled . | . . . . . . Actions | -11 -10 -10 -10 -9 -8 --------- Run | Yrd Mat Min Exi Min Mat Total 3025 | 60 351 215 391 34 1974 Wait 1145 | . 20 6 . 17 1102 Move 1575 | 44 293 185 382 17 654 Hop . | . . . . . . Pick Up 78 | 10 7 2 3 . 56 Fast Attach 2 | . . . 2 . . Attach 45 | 6 2 7 1 . 29 Detach 1 | . . . . . 1 Swap 12 | . . . . . 12 Drop 7 | . 2 . 3 . 2 Fire 160 | . 27 15 . . 118 Melee . | . . . . . . Ram . | . . . . . . Kick . | . . . . . . Crush . | . . . . . . Escape Stasis . | . . . . . . Rewire . | . . . . . . Trap . | . . . . . . Miscellaneous . | . . . . . . Route ------- -11/Scrapyard -10/Materials (discovered 2 exits: [*Min x2]) -10/Mines -10/Exiles -9/Mines -8/Materials History --------- Turn | Location | Event 9 | -11/Scrapyard | Discovered new exit (range 16) 64 | -11/Scrapyard | Entered Materials 86 | -10/Materials | Discovered new exit (range 5) 110 | -10/Materials | Discovered new exit (range 15) 305 | -10/Materials | Build established: Mutant 516 | -10/Materials | Entered Mines 517 | -10/Mines | Assembled infested the area 558 | -10/Mines | Core integrity fell below 50% 589 | -10/Mines | Lost 7 parts (1p2n2u2w) 592 | -10/Mines | Met 8R-AWN 729 | -10/Mines | Learned location of Storage (-7) 790 | -10/Mines | Discovered new exit (range 5) 794 | -10/Mines | Entered Exiles 826 | -10/Exiles | Welcomed by 8R-AWN 845 | -10/Exiles | Met EX-HEX 881 | -10/Exiles | Met EX-BIN 898 | -10/Exiles | Aligned with FarCom system 899 | -10/Exiles | Given EX-Vault access code 938 | -10/Exiles | Opened EX-Vault 944 | -10/Exiles | Found Prototype Energy Cannon 949 | -10/Exiles | Found Prototype Ballistic Cannon 952 | -10/Exiles | Identified Latent Energy Streamer 953 | -10/Exiles | Found Prototype Storage 990 | -10/Exiles | Identified Lightpack 2.0 990 | -10/Exiles | Identified AWS/Autocannon 1030 | -10/Exiles | Warned to stay clear of 0b10 Research branches 1169 | -10/Exiles | Met EX-DEC 1204 | -10/Exiles | Visited The Gauntlet 1416 | -10/Exiles | Discovered new exit (range 14) 1438 | -10/Exiles | Stole three prototypes: Latent Energy Streamer, Lightpack 2.0, AWS/Autocannon 1438 | -10/Exiles | Entered Mines 1447 | -9/Mines | Discovered new exit (range 14) 1488 | -9/Mines | Entered Materials 1488 | -8/Materials | Accompanied by 2 allies 1488 | -8/Materials | Evolved 4 slots: Propulsion x2, Utility x2 1493 | -8/Materials | Led the pair of lost Derelicts to an unsafe place 2178 | -8/Materials | Build established: Hauler-Skirmisher 3348 | -8/Materials | Lost 4 parts (1p1n1u1w) 3352 | -8/Materials | Core integrity fell below 50% 3372 | -8/Materials | System corruption reached 10% 3402 | -8/Materials | Lost 3 parts (2n1w) 3602 | -8/Materials | Core integrity fell below 20% 3613 | -8/Materials | Build established: Hauler-Mutant 3691 | -8/Materials | Lost 11 parts (3p3n1u4w) 3822 | -8/Materials | Destroyed by Y-45 Defender with Heavy Assault Rifle Last Messages --------------- 03686_ Acquired 56 matter. 03698_ ZAAH|N::EZ2TOZ%ACY8 M8MD 03698_ Acquired 76 matter. 03699_ Acquired 49 matter. 03713_ System corrupted: Matter fused (-8). 03718_ Acquired 1 matter. 03720_ Acquired Minigun. Lgt. Armor Plating swallowed by quantum anomaly within Lightpack 2.0. 03723_ Acquired Minigun. 03724_ Acquired 6 matter. 03725_ Acquired 4 matter. 03733_ System corrupted: Energy discharge (-18). 03739_ R-06 Scavenger collects Imp. Heat Sink. 03748_ System corrupted: Energy discharge (-23). 03761_ W-25 Informer sends out distress signal. 03770_ System corrupted: Energy discharge (-24). 03789_ System corrupted: Substantial component data lost. 03806_ Y-45 Defender destroyed. 03816_ System corrupted: Energy discharge (-60). 03821_ R-06 Scavenger collects Lgt. Treads. Map ----- +----------------------------------------------------+ | ?????????????????????????????????????????????????? | | ?????????????????????????????????????????????????? | | ?????????????????????????????????????????????????? | | ?????????????????????????????????????????????????? | | ?????????????????????????????????????????????????? | | ?????????????????????????????????????????????????? | | ?????????????????????????????????????????????????? | | ?????????????????????????????????????????????????? | | ?????????????????????????????????????????????????? | | ?????????????????????????????????????????????????? | | ?????????????????????????????????????????????????? | | ?????????????????????????????????????????????????? | | ??????????????????????????????????????????????##?? | | ??????????????????????????????????????????????# | | ??????????????????????????????????????????????? | | ?????????????????????????????????????????????????" | | ?????????????????????????????????????????????????" | | ?????????????????????????????????????????????????" | | ???????????????????????????????????????????? ????" | | ??????????????????????????????????????????? #???" | | ??????????????????????????????############ #? | | ?????????????# ############# #?### | | ???????????? #???? | | ?????????????? T %r #???? | | ???????????????????#######Y##### #???? | | ??????????????????????# @r # #???? | | ??????????????????????#! """ # #???? | | ??????????????????????# """ # ######### #???? | | ??????????????????????# """ # #??##???????????? | | ??????????????????????# # ### #???????????? | | ??????????????????????# """ # ########????????? | | ??????????????????????# ! """ # # ##????#### | | ??????????????????????# """ # # %#? | | ??????????????????????# ?# # ##???????? | | ??????????????????????########## # #????????? | | ????????????????????????# # # % *#????????? | | ????????????????????????# [% # # =* #????????? | | ????????????????????????# [ # ##+############## | | ????????????????????????# [ + %* = % | | ????????????????????????# ################### | | ?????????????????????Y??# #?????????????????? | | ????????????????????????########?????????????????? | | ?????????????????????????????????????????????????? | | ?????????????????????????????????????????????????? | | | | | | | | | | | | | +----------------------------------------------------+ Best States ------------- Heat Dissipation 31 Energy Generation 14 Energy Capacity 265 Matter Stores 342 Matter Capacity 350 Sight Range 16 Robot Scan Range 15 Terrain Scan Density 10 Armor Coverage 150 Evasion (%) 55 Item Schematics ----------------- None Robot Schematics ------------------ None Fabricated ------------ Nothing Alien Tech Used ----------------- None Achievements -------------- I Survived The Infestation Packrat Challenges ------------ None Game ------ Seed SwarmGreatStorm Manual? 0 Play Time 00:48:54 Cumulative 5.0 hours Start 2025.05.04 @ 19:39:55 End 2025.05.04 @ 20:29:05 Sessions 1 Manual Loads 0 Difficulty Rogue Special Mode None Game No. 3 Rogue 3 Adventurer 0 Explorer 0 Win Type - Total 0 Types 0/0/0/0/0/0/0/0/0 Lore% 7 Gallery% 11 Achievement% 10 Wizard Run 0 Options --------- Layout 0 ASCII 0 Keyboard 0 Movement Mouse Keybinds 0 Fullscreen 1 Font 18/SmallcapsGlow Map View 76x50 Zoom Use 0% Tactical HUD 1 Map Filters NONE Filters NONE Steam 1 RUN: 96d63171-be1c-49a2-8ca3-35b11c4b3659